Cogmind - Beta 16 @@@ ROGUE MODE // 2025.11.02 @ 20:41:57 Player: QXander Result: Destroyed by G-34 Mercenary with Small Laser Performance ------------- Evolutions (0) 0 Regions Visited (2) 400 Robots Destroyed (17) 85 Value Destroyed (411) 411 Prototype IDs (0) 0 Alien Tech Used (0) 0 Bonus (0) 0 TOTAL SCORE: 896 Bonus ------- None Cogmind --------- Core Integrity 0/250 Matter 300/300 Energy 249/250 System Corruption 0% Temperature Cool (6) Movement Rolling (110) Location -10/Subcaves Parts ------- > --- POWER (1) -------- Ion Engine > --- PROPULSION (2) --- Subdweller Monowheel > --- UTILITY (2) ------ Heat Sink Subdweller Optics > --- WEAPON (2) ------- Small Laser > --- INVENTORY (5) ---- Ion Engine Wheel Scrap Shield Fragment (49) Scrap Shield Fragment (46) Scrap Shield Fragment (42) Peak State ------------ > --- POWER ------------ Ion Engine > --- PROPULSION ------- Wheel Subdweller Monowheel > --- UTILITY ---------- Disposable Heat Sink Visual Processing Unit > --- WEAPON ----------- Small Laser Small Laser > --- INVENTORY -------- Ion Engine Wheel [Rating: 10] Favorites ----------- Power Light Ion Engine Engine Light Ion Engine Propulsion Light Treads Treads Light Treads Leg Aluminum Leg Wheel Subdweller Monowheel Utility Visual Processing Unit Device Subdweller Optics Storage Small Storage Unit Processor Visual Processing Unit Weapon Small Laser Energy Gun Small Laser Ballistic Gun Assault Rifle Build | -11 -10 -10 ------- Run | Yrd Mat Sub Slots Evolved . | . . . Power . | . . . Propulsion . | . . . Utility . | . . . Weapon . | . . . Parts Attached 26 | 6 18 2 Power 5 | 1 3 1 Engine 5 | 1 3 1 Core . | . . . Reactor . | . . . Propulsion 9 | 2 7 . Treads 2 | 2 . . Leg 4 | . 4 . Wheel 3 | . 3 . Hover . | . . . Flight . | . . . Utility 7 | 1 5 1 Device 4 | . 3 1 Storage 2 | 1 1 . Processor 1 | . 1 . Hackware . | . . . Protection . | . . . Artifact . | . . . Weapon 5 | 2 3 . Energy Gun 4 | 1 3 . Energy Cannon . | . . . Ballistic Gun 1 | 1 . . Ballistic Cannon . | . . . Launcher . | . . . Special Weapon . | . . . Impact Weapon . | . . . Slashing Weapon . | . . . Piercing Weapon . | . . . Special Melee Weapon . | . . . Unidentified Prototypes . | . . . Parts Lost 4 | . 2 2 Power 1 | . 1 . Propulsion 1 | . . 1 Utility 1 | . 1 . Weapon 1 | . . 1 Highest Loss Streak 1 | . 1 1 To Critical Strikes . | . . . Average Backups 1 | . 1 2 Power . | . . 1 Propulsion . | . . 1 Utility . | . . . Weapon . | . . . Tool/Special . | . . . Unused Backups 2 | . 2 . Power 2 | . 2 . Propulsion . | . . . Utility . | . . . Weapon . | . . . Tool/Special . | . . . Average Slot Usage (%) 90 | . 91 86 Engine 13 | . 13 14 Treads 18 | . 22 . Leg 3 | . 3 . Wheel 5 | . 1 27 Device 5 | . 1 28 Storage 9 | . 11 . Processor 6 | . 8 . Energy Gun 20 | . 20 16 Ballistic Gun 6 | . 7 . Peak Build Rating 10 | 6 10 10 Average Rating 7 | 4 7 8 On Entrance 5 | . 6 10 Avg Prop Armor Cover (%) 13 | . 13 . Naked Turns . | . . . Heaviest Build 27 | 11 27 10 Greatest Support 40 | 40 40 30 Greatest Overweight (x) 2 | . 2 . Average Overweight (x) . | . . . Largest Inventory Capacity 15 | 8 15 5 Average Capacity 9 | 7 10 5 Most Carried 5 | 1 5 5 Average Carried 1 | . 1 5 Final Capacity 8 | 8 5 5 Final Carried 5 | 1 5 5 Class Distribution -------------------- 70% | Mutant 29% | Scavenger-Mutant Dominant Class ---------------- Mutant | -10/Materials Scavenger-Mutant | -10/Subcaves Resources | -11 -10 -10 ----------- Run | Yrd Mat Sub Matter Collected 509 | 211 257 41 Remotely . | . . . Salvage Created 645 | . 554 91 Parts 37 | . 30 7 Haulers Intercepted . | . . . Recyclers Shooed . | . . . Parts Field Recycled . | . . . Retrieved Matter . | . . . Parts Self-Destructed 10 | . . 10 Prevented . | . . . Parts Restored . | . . . Kills | -11 -10 -10 ------- Run | Yrd Mat Sub Combat Hostiles Destroyed 12 | . 10 2 Guns 12 | . 10 2 Classes Destroyed 7 | . 6 1 Worker 1 | . 1 . Recycler 2 | . 2 . Watcher 2 | . 2 . Swarmer 3 | . 3 . Grunt 7 | . 6 1 Sentry 1 | . . 1 Subdweller 1 | . 1 . Best Kill Streak 6 | . 6 2 Combat Bots Only 3 | . 3 2 Max Kills in Single Turn 1 | . 1 1 Gunslinging . | . . . Exploded . | . . . Melee . | . . . Uniques/NPCs Destroyed . | . . . Combat | -11 -10 -10 -------- Run | Yrd Mat Sub Hostile Shots Fired 124 | . 96 28 Missed 36 | . 29 7 Hits 88 | . 67 21 Projectile 88 | . 67 21 AOE 3 | . 3 . Damage Taken 1067 | . 817 250 Core 252 | . 186 66 Absorbed by Shields . | . . . Core Remaining (%) 100 | 100 . . Volleys Fired 79 | . 61 18 Largest 2 | . 2 2 Hottest 80 | . 80 80 Shots Fired 126 | . 105 21 Gun 126 | . 105 21 Cannon . | . . . Launcher . | . . . Special . | . . . Kinetic 13 | . 13 . Thermal 113 | . 92 21 Explosive . | . . . Electromagnetic . | . . . Robot Hit Streak 11 | . 11 6 Robot Miss Streak 9 | . 9 2 Penetration Max . | . . . Secondary Targets 2 | . 2 . Max Gunslinging Chain 1 | . 1 . Shots Hit Robots 77 | . 62 15 Core Hits 32 | . 27 5 Critical Kills . | . . . Critical Parts Destroyed . | . . . Critical Strikes . | . . . Melee Attacks . | . . . Impact . | . . . Slashing . | . . . Piercing . | . . . Sneak Attacks . | . . . Combat Hostiles . | . . . Follow-up Attacks . | . . . Damage Inflicted 886 | . 717 169 Guns 886 | . 717 169 Cannons . | . . . Explosions . | . . . Melee . | . . . Ramming . | . . . Kinetic 109 | . 109 . Thermal 777 | . 608 169 Explosive . | . . . Electromagnetic . | . . . Impact . | . . . Slashing . | . . . Piercing . | . . . Highest Corruption . | . . . Average Corruption . | . . . Corruption Purged . | . . . Corruption Blocked . | . . . Overload Shots . | . . . Overflow Damage . | . . . Projectiles . | . . . Explosions . | . . . Melee . | . . . Knockbacks . | . . . Impact . | . . . Kinetic . | . . . Secondary . | . . . Self-Inflicted Damage . | . . . Shots . | . . . Rammed . | . . . Targets Rammed . | . . . Kicked . | . . . Crushed . | . . . Highest Temperature 270 | . 270 14 Average Temperature 64 | . 65 7 Received Heat Transfer 375 | . 249 126 Effects 2 | . 2 . Interference 2 | . 2 . Siege Activations . | . . . Martial Activations . | . . . Shielding Activations . | . . . Robots Disrupted . | . . . Combat Hostiles . | . . . Robots Corrupted . | . . . Combat Hostiles . | . . . Parts Fried . | . . . Impact Corruptions . | . . . Robots Melted . | . . . Combat Hostiles . | . . . Parts Melted 2 | . 2 . Heat Transferred 1800 | . 1400 400 Parts Sabotaged . | . . . Parts Stolen . | . . . Parts Stripped . | . . . Power Chain Reactions . | . . . Alert | -11 -10 -10 ------- Run | Yrd Mat Sub Maximum Alert Level . | . . . Low Security (%) 100 | 100 100 . Level 1 . | . . . Level 2 . | . . . Level 3 . | . . . Level 4 . | . . . Level 5 . | . . . High Security . | . . . Max Security . | . . . Peak Influence 94 | . 94 . Initial . | . . . Average 17 | . 20 . Influence Increases 288 | . 248 40 Destroy 0b10 Robot/C 220 | . 180 40 Destroy 0b10 Robot/NC 25 | . 25 . Destroy Leader 34 | . 34 . Successful Hack 9 | . 9 . Influence Decreases 288 | . 204 84 Entered New Map 22 | . . 22 Time Decay 236 | . 184 52 Lost Part 30 | . 20 10 Squads Dispatched 1 | . 1 . Investigation . | . . . Extermination . | . . . Reinforcement 1 | . 1 . Assault . | . . . Garrison . | . . . Intercept . | . . . Searches Triggered . | . . . Construction Impeded . | . . . Haulers Reinforced . | . . . Active Scanning Responses . | . . . Cargo Convoy Interrupts . | . . . Stealth | -11 -10 -10 --------- Run | Yrd Mat Sub Distress Signals 1 | . 1 . Communications Jammed . | . . . Distress Signals . | . . . Times Spotted 18 | . 15 3 Peak Tracking Total 4 | . 4 2 Tactical Retreats . | . . . Traps | -11 -10 -10 ------- Run | Yrd Mat Sub Traps Triggered . | . . . Indirectly . | . . . Trap Hack Attempts . | . . . Triggered . | . . . Disarmed . | . . . Reprogrammed . | . . . Reused . | . . . Traps Extracted . | . . . Installed . | . . . Triggered . | . . . Machines | -11 -10 -10 ---------- Run | Yrd Mat Sub Machines Disabled 1 | . 1 . Max in Single Turn 1 | . 1 . Machines Repaired . | . . . Machines Dismantled . | . . . Machines Sabotaged . | . . . Overloaded Fab Kills . | . . . Hacking | -11 -10 -10 --------- Run | Yrd Mat Sub Machines Accessed 3 | . 3 . Terminals 2 | . 2 . Fabricators . | . . . Repair Stations . | . . . Recycling Units 1 | . 1 . Scanalyzers . | . . . Garrison Access . | . . . Total Hacks 10 | . 10 . Successful 8 | . 8 . Failed 2 | . 2 . Catastrophic . | . . . Database Lockouts . | . . . Manual . | . . . Terminals 6 | . 6 . Fabricators . | . . . Repair Stations . | . . . Recycling Units 4 | . 4 . Scanalyzers . | . . . Garrison Access . | . . . Terminal Hacks 4 | . 4 . Locate Traps 2 | . 2 . Registered Components 1 | . 1 . Zone Layout 1 | . 1 . Fabricator Hacks . | . . . Repair Station Hacks . | . . . Recycling Unit Hacks 4 | . 4 . Recycle Component 1 | . 1 . Process 2 | . 2 . Retrieve Components 1 | . 1 . Scanalyzer . | . . . Garrison Access Hacks . | . . . Unauthorized Hacks . | . . . Terminals . | . . . Fabricators . | . . . Repair Stations . | . . . Recycling Units . | . . . Scanalyzers . | . . . Garrison Access . | . . . Data Cores Recovered . | . . . Used . | . . . Hacking Detections 3 | . 3 . Full Trace Events . | . . . Feedback Events . | . . . Feedback Blocked . | . . . Robot Schematics Acquired . | . . . Robots Built . | . . . Authchips . | . . . Time . | . . . Total Robot Build Rating . | . . . Part Schematics Acquired . | . . . Parts Built . | . . . Authchips . | . . . Time . | . . . Total Part Build Rating . | . . . Part Studies Acquired . | . . . Parts Repaired . | . . . Time . | . . . Parts Recycled 1 | . 1 . Recycled Matter 20 | . 20 . Retrieved Matter . | . . . Retrieved Components . | . . . Parts Scanalyzed . | . . . Part Schematics Acquired . | . . . Parts Damaged . | . . . Bothacking | -11 -10 -10 ------------ Run | Yrd Mat Sub Used RIF Installer . | . . . Robots Hacked . | . . . Non-combat . | . . . Combat . | . . . Robot Hacks Applied . | . . . Relay Couplers Released . | . . . Fabnet Peak Effective % . | . . . Robots Rewired . | . . . Allies Hacked . | . . . Hacks Repelled . | . . . Allies | -11 -10 -10 -------- Run | Yrd Mat Sub Total Allies . | . . . Largest Group . | . . . Highest-Rated Group . | . . . Highest-Rated Ally . | . . . Total Orders . | . . . Ally Attacks . | . . . Total Damage . | . . . Kills . | . . . Allies Corrupted . | . . . Allies Melted . | . . . Intel | -11 -10 -10 ------- Run | Yrd Mat Sub Active Infowar (turns) 690 | . 542 148 Optics 690 | . 542 148 Robot Analysis Total . | . . . Derelict Logs Recovered . | . . . Drone Launches . | . . . Drone Recoveries . | . . . Exploration | -11 -10 -10 ------------- Run | Yrd Mat Sub Turns Passed 1141 | 119 874 148 Spaces Moved 599 | 75 412 112 Core 9 | 9 . . Treads 390 | 66 324 . Legs 49 | . 49 . Wheels 151 | . 39 112 Hover . | . . . Flight . | . . . Fastest Speed 50 | 50 95 95 Average Speed 140 | 146 151 95 Slowest Speed 260 | 160 260 95 Overloaded Moves . | . . . Propulsion Burnouts . | . . . Robots Hopped . | . . . Potential Cave-ins . | . . . Cave-ins Triggered . | . . . Exploration Rate (%) 20 | 4 43 14 Regions Visited 2 Branch Regions 1 Pre-discovered Areas . | . . . Known Exits Taken . | . . . Unknown Exits Taken 2 | 1 1 . Scrap Searched . | . . . Spaces Dug . | . . . Terrain Destroyed . | . . . Melee . | . . . Projectile . | . . . AOE . | . . . Terrain Rammed . | . . . Walls Destroyed . | . . . Machines Disabled . | . . . Actions | -11 -10 -10 --------- Run | Yrd Mat Sub Total 772 | 81 559 132 Wait 42 | . 42 . Move 597 | 74 411 112 Hop . | . . . Pick Up 10 | 1 9 . Fast Attach 10 | 6 4 . Attach 3 | . 3 . Detach 4 | . 4 . Swap 15 | . 13 2 Drop 12 | . 12 . Fire 79 | . 61 18 Melee . | . . . Ram . | . . . Kick . | . . . Crush . | . . . Escape Stasis . | . . . Rewire . | . . . Trap . | . . . Miscellaneous . | . . . Route ------- -11/Scrapyard -10/Materials (discovered 3 exits: [*Min x2] / [*Sub]) -10/Subcaves (discovered 1 exit: [*Mat]) History --------- Turn | Location | Event 12 | -11/Scrapyard | Discovered new exit (range 15) 120 | -11/Scrapyard | Entered Materials 120 | -10/Materials | Discovered new exit (range 14) 311 | -10/Materials | Build established: Mutant 461 | -10/Materials | Discovered new exit (range 17) 720 | -10/Materials | Derelicts attacked the area 923 | -10/Materials | Core integrity fell below 50% 986 | -10/Materials | Discovered new exit (range 8) 994 | -10/Materials | Entered Subcaves 995 | -10/Subcaves | Approached by a straggling Scientist 1015 | -10/Subcaves | Core integrity fell below 20% 1057 | -10/Subcaves | Shifting Twisted Machinery released Piercing Trap 1059 | -10/Subcaves | Shifting Twisted Machinery released Shrapnel Trap 1119 | -10/Subcaves | Build established: Scavenger-Mutant 1128 | -10/Subcaves | Discovered new exit (range 10) 1142 | -10/Subcaves | Destroyed by G-34 Mercenary with Small Laser Last Messages --------------- 01023_ Heat Sink fries itself beyond repair. 01028_ G-34 Mercenary destroyed. 01031_ Subatomizers dissect the Hvy. Assault Rifle. 01032_ Lgt. Treads fries itself beyond repair. 01035_ Hvy. Assault Rifle fries itself beyond repair. 01035_ Aluminum Leg fries itself beyond repair. 01035_ Ion Engine fries itself beyond repair. 01039_ Acquired 31 matter. 01041_ Acquired Heat Sink. 01042_ Acquired 10 matter. Piercing Trap falls loose from the Twisted Machinery. Shrapnel Trap falls loose from the Twisted Machinery. 01128_ EXIT=FOUND 01136_ Subatomizers dissect the Sub. Laser. 01138_ Wheel destroyed. Map ----- +----------------------------------------------------+ | ?????????????????????????????????????????????????? | | ?????????????????????????????????????????????????? | | ?????????????????????????????????????????????????? | | ?????????????????????????????????????????????????? | | ?????????????????????????????????????????????????? | | ?????????????????????????????????????????????????? | | ?????????????????????????????????????????????????? | | ?????????????????????????????????????????????????? | | ?????????????????????#???????#???????????????????? | | ????????????????????? #????## ???????????????????? | | ????????????????????? ??# ???????????????????? | | ????????????????????? ?? ???????????????????? | | ????????????????????? ?? #???????????????????? | | ????????????????????? ?? #???????????????????? | | ?????????????????????? ## ????????????????????? | | ?????????????????????? ????????????????????? | | ?????????????????????? *